{"text_format":"1","workbook":"xlsx","n_sheets":3,"sheets":["Поступления от иной деят ","Субсидия  на вып мун задания","Субсидия  на иные цели"],"not_rendered":{"charts":0,"images":0,"macros":0,"external_links":0,"defined_names":0,"comments":0,"pivot_tables":0},"unopened":[],"bounds":{"document_bytes":16777216,"sheet_cells":100000,"rows_first":2000,"rows_last":500,"rows_between":2000,"halvings":0,"cell_chars":16384,"cell_head_chars":4096},"cells_cut":0,"cells_raw":0,"read":"whole","date_system":"1900"}

{"sheet":"Поступления от иной деят ","index":0,"n_rows":122,"n_cols":17,"rows_kept":122,"cut":false,"hidden":false,"merged":[[52,13,52,14],[111,0,111,1],[0,0,0,9],[3,2,4,2],[3,4,4,4],[3,5,4,5],[3,6,4,6],[2,4,2,6],[2,7,2,9],[3,7,4,7],[3,8,4,8],[3,9,4,9],[3,3,4,3],[2,0,4,0],[3,1,4,1],[2,1,2,3]]}
["Отчет о выполнении планафинансово-хозяйственной деятельности МАОУ       \"Лицей №21\"                         по состоянию на 01.02.2018 г."]
[]
[null,"Всего на  2018 год",null,null,"Получено на 01.02.2018 г.",null,null,"Израсходовано"]
[null,"Всего","Поступления от оказания муниципальными учреждением (подразделением) услуг (выполнения работ) , предоставление которых для физических и юридических лиц осуществляется на платной основе","Поступления от иной приносящей доход деятельности, всего:","Всего","Поступления от оказания муниципальными учреждением (подразделением) услуг (выполнения работ) , предоставление которых для физических и юридических лиц осуществляется на платной основе","Поступления от иной приносящей доход деятельности, всего:","Всего","Поступления от оказания муниципальными учреждением (подразделением) услуг (выполнения работ) , предоставление которых для физических и юридических лиц осуществляется на платной основе","Поступления от иной приносящей доход деятельности, всего:"]
[]
["Неиспользованный остаток на 01.01.2017",{"$f":"C6+D6","v":185397.42},185397.42]
["Доходы , всего",{"$f":"C7+D7","v":2625705.3600000003},{"$f":"SUM(C9:C26)","v":2617705.3600000003},{"$f":"SUM(D9:D26)","v":8000},{"$f":"F7+G7","v":326790.51},{"$f":"SUM(F9:F26)","v":325847.14},{"$f":"SUM(G9:G26)","v":943.37},{"$f":"I7+J7","v":0},{"$f":"SUM(I9:I26)","v":0},{"$f":"SUM(J9:J26)","v":0}]
["в т.ч.",0,null,null,0,null,null,0]
["Родительские средства на сод.детей в лагере",258750,258750,null,0,null,null,0]
["Обучение русскому языку",186704.08,186704.08,null,33271,33271,null,0]
["Обучение математике",377126.40000000002,377126.40000000002,null,52622.5,52622.5,null,0]
["Обучение английскому языку",64699,64699,null,0,null,null,0]
["Подготовка к школе",804268.3,804268.3,null,136842.64000000001,136842.64000000001,null,0]
["Обучение химии",0,null,null,0,null,null,0]
["Обучение работе на ПК",0,null,null,0,null,null,0]
["Обучение физике",27788.080000000002,27788.080000000002,null,4074,4074,null,0]
["Обучение обществознанию",113393,113393,null,{"$f":"F17+G17","v":12561.5},12561.5,null,0]
["Обучение биологии",6111,6111,null,1018.5,1018.5,null,0,null,null,null,null," "]
["Тренаженый зал",9506,9506,null,1940,1940,null,0]
["Обучение истории",57715,57715,null,9166.5,9166.5,null,0]
["Умники и умницы",681914,681914,null,74350.5,74350.5,null,0]
["Обучение информатики",22067.5,22067.5,null,0,null,null,0]
["Группа пед присмотра",7663,7663,null,0,null,null,0]
["аренда",6565.69,null,8000,943.37,null,943.37,0]
["стипендия",0,null,null,0,null,null,0]
["ндс",0,null,null,0,null,null,0]
["Спонсорские средства",0,null,null,0,null,null,0]
[null,0,null,null,0,null,null,0]
[null,0,null,null,0,null,null,0]
[null,0,null,null,0,null,null,0]
[null,0,null,null,0,null,null,0]
["Расходы , всего",2811102.7800000007,{"$f":"C33+C37+C39+C43+C46+C53+C66+C90+C98+C104+C44","v":2803102.7800000007},{"$f":"D33+D37+D39+D43+D46+D53+D66+D90+D98+D104","v":8000},326790.50999999995,{"$f":"F33+F37+F39+F43+F46+F53+F66+F90+F98+F104+F44","v":325847.13999999996},{"$f":"G33+G37+G39+G43+G46+G53+G66+G90+G98+G104","v":943.37},28888.039999999997,{"$f":"I33+I37+I39+I43+I46+I53+I66+I90+I98+I104+I44","v":28550.399999999998},{"$f":"J33+J37+J39+J43+J46+J53+J66+J90+J98+J104","v":337.64}]
["Заработная плата, всего",1270293.99,1270293.99,null,200000,200000,null,500,500]
["В т.ч. По нормативу, расчету ",0,{"$f":"SUM(D34:E34)","v":0},null,0,{"$f":"SUM(G34:H34)","v":0},null,0,{"$f":"SUM(J34:K34)","v":0}]
["награждение победителей конкурса \"Лучший  воспитатель, ПДО\"",0,{"$f":"SUM(D35:E35)","v":0},null,0,{"$f":"SUM(G35:H35)","v":0},null,0,{"$f":"SUM(J35:K35)","v":0}]
["в т.ч. педагогические работники",903653.23,903653.23,null,173500,173500,null,500,500,null,null,null,null,null," "]
[null,0,null,null,0,null,null,0,null,null,null,null,null," "]
[null,0,null,null,0,null,null,0,null,null,null,null,null," "]
["Начисления на оплату труда, всего",383628.79,383628.79,null,85183.34,85183.34,null,0]
["В т.ч. По нормативу, расчету ",0,{"$f":"SUM(D40:E40)","v":0},null,0,{"$f":"SUM(G40:H40)","v":0},null,0,{"$f":"SUM(J40:K40)","v":0}]
["награждение победителей конкурса \"Лучший  воспитатель, ПДО\"",0,{"$f":"SUM(D41:E41)","v":0},null,0,{"$f":"SUM(G41:H41)","v":0},null,0,{"$f":"SUM(J41:K41)","v":0}]
["в т.ч. педагогические работники",277389.13,277389.13,null,52397,52397,null,0]
[null,0,null,null,0,null,null,0]
["услуги связи",7929.6,7929.6,null,660.8,660.8,null,660.8,660.8]
["Транспортные услуги",0,{"$f":"SUM(D45:E45)","v":0},null,0,{"$f":"SUM(G45:H45)","v":0},null,0,{"$f":"SUM(J45:K45)","v":0}]
["Коммунальные услуги, всего",7532.06,4532.0600000000004,3000,1337.6399999999999,1000,337.64,1052.24,714.6,337.64]
["Свет ОАО \"ТОСК\" ",0,{"$f":"SUM(D47:E47)","v":0},null,0,{"$f":"SUM(G47:H47)","v":0},null,0,{"$f":"SUM(J47:K47)","v":0}]
["Тепло, всего",0,0,{"$f":"D49+D50","v":0},0,0,{"$f":"G49+G50","v":0},0,0,{"$f":"J49+J50","v":0}]
["ОАО \"ТКС\"",0,0,null,0,0,null,0,0]
["МУП \"ТИС\"",0,0,null,0,0,null,0,0]
["Вода ОАО \"ТКС\"",0,0,null,0,0,null,0,0]
["Арендная плата ",0,0,null,0,0,null,0,0]
["Расходы, услуги по содержанию имущества, всего",0,{"$f":"SUM(C54:C65)","v":0},{"$f":"SUM(D54:D65)","v":0},0,{"$f":"SUM(F54:F65)","v":0},{"$f":"SUM(G54:G65)","v":0},0,{"$f":"SUM(I54:I65)","v":0},{"$f":"SUM(J54:J65)","v":0},null,null," "]
["противопожарные мероприятия",0,null,null,0,null,null,0]
["из них электроизмер.работы",0,null,null,0,null,null,0]
[null,0,null,null,0,null,null,0]
[null,0,null,null,0,null,null,0]
[null,0,null,null,0,null,null,0]
[null,0,null,null,0,null,null,0]
[null,0,null,null,0,null,null,0]
[null,0,null,null,0,null,null,0]
[null,0,null,null,0,null,null,0]
[null,0,null,null,0,null,null,0]
[null,0,null,null,0,null,null,0]
[null,0,null,null,0,null,null,0]
["Прочие работы, услуги , всего",533126.28,{"$f":"SUM(C67:C89)","v":533126.28},{"$f":"SUM(D67:D89)","v":0},26675,{"$f":"SUM(F67:F89)","v":26675},{"$f":"SUM(G67:G89)","v":0},26675,{"$f":"SUM(I67:I89)","v":26675},{"$f":"SUM(J67:J89)","v":0}]
["заправка катриджей",7000,7000,null,1200,1200,null,1200,1200]
["спец оценка условий труда",0,null,null,0,null,null,0]
["текущий ремонт здания",20000,20000,null,0,null,null,0]
["аттестаты",4300,4300,null,0,null,null,0]
["питание в пришкольном лагере",248015.25,248015.25,null,{"$f":"F71+G71","v":0},null,null,{"$f":"I71+J71","v":0}]
["подписка",24269.7,24269.7,null,0,null,null,0]
[null,0,null,null,0,null,null,0]
[null,0,null,null,0,null,null,0]
[null,0,null,null,0,null,null,0]
["лицензирование, аккредитация",25300,25300,null,0,null,null,0]
["противопожарные мероприятия",0,null,null,0,null,null,0]
[null,0,null,null,0,null,null,0]
[null,0,null,null,0,null,null,0]
[null,0,null,null,0,null,null,0]
[null,{"$f":"C81+D81","v":0},null,null,0,null,null,0]
["программное обеспечение",121821.33,121821.33,null,0,null,null,0]
["оформление тех документации",13620,13620,null,12675,12675,null,12675,12675]
["ремонт оборудования",19360,19360,null,0,null,null,0]
["скминар",0,null,null,0,null,null,0]
["реставрация",22240,22240,null,0,null,null,0]
["курсы",7200,7200,null,0,null,null,0]
["удаление наледи",20000,20000,null,12800,12800,null,12800,12800,null,null,null,null," "]
[null,0,null,null,0,null,null,0]
["Прочие расходы, всего",56768.43,{"$f":"C91+C92+C93+C94+C95+C96+C97","v":56768.43},{"$f":"D91+D92+D93+D94+D95+D96+D97","v":0},0,{"$f":"F91+F92+F93+F94+F95+F96+F97","v":0},{"$f":"G91+G92+G93+G94+G95+G96+G97","v":0},0,{"$f":"I91+I92+I93+I94+I95+I96+I97","v":0},{"$f":"J91+J92+J93+J94+J95+J96+J97","v":0}]
["стипендия",0,null,null,0,null,null,0]
["ндс",0,null,null,0,null,null,0]
["госпошлина",56768.43,56768.43,null,0,null,null,0]
[null,0,null,null,0,null,null,0]
[null,0,null,null,0,null,null,0]
[null,0,null,null,0,null,null,0]
["ндс",0,null,null,0,null,null,0]
["Увеличение стоимости основных средств, всего",165714.76,{"$f":"SUM(C99:C103)","v":165714.76},{"$f":"SUM(D99:D103)","v":0},0,{"$f":"SUM(F99:F103)","v":0},{"$f":"SUM(G99:G103)","v":0},0,{"$f":"SUM(I99:I103)","v":0},{"$f":"SUM(J99:J103)","v":0}]
["медали",1180,1180,null,0,null,null,0]
["оргтехника",57084.76,57084.76,null,0,null,null,0]
["кушетки",12300,12300,null,0,null,null,0,null,null,null,null,null,null,null,null," "]
["контейнер",19650,19650,null,0,null,null,0]
["мебель",75500,75500,null,0,null,null,0]
["Увеличение стоимости материальных запасов, всего",386108.87,{"$f":"SUM(C105:C111)","v":381108.87},{"$f":"SUM(D105:D111)","v":5000},12933.73,{"$f":"SUM(F105:F111)","v":12328},{"$f":"SUM(G105:G111)","v":605.73},0,{"$f":"SUM(I105:I111)","v":0},{"$f":"SUM(J105:J111)","v":0}]
["прочее",383708.87,378708.87,5000,12933.73,12328,605.73,0]
["журналы",2400,2400,null,0,null,null,0]
[null,0,null,null,0,null,null,0]
[null,0,null,null,0,null,null,0]
[null,0,null,null,0,null,null,0]
[null,0,null,null,0,null,null,0]
[null,0,null,null,0,null,null,0]
["Неиспользованный остаток на 01.01.2018",null,null,null,null,"  ",null,{"$f":"SUM(B6+E7-H32)","v":483299.89000000007},{"$f":"SUM(C6+F7-I32)","v":482694.16000000003},{"$f":"SUM(D6+G7-J32)","v":605.73}]
["Примечание: сумма 7122,95 возврат фсс"]
["Руководитель",null,"В.Г.Рудник"]
["Главный бухгалтер",null,"Н.А.Прыткова"]
[]
[null,null,null,null,null," "]
[]
[]
[]
[]
[" "]

{"sheet":"Субсидия  на вып мун задания","index":1,"n_rows":95,"n_cols":33,"rows_kept":95,"cut":false,"hidden":false,"merged":[[3,4,4,4],[3,12,4,12],[3,16,4,16],[3,15,4,15],[3,13,4,13],[3,5,4,5],[3,14,4,14],[3,22,4,22],[3,23,4,23],[3,20,4,20],[3,10,4,10],[3,11,4,11],[3,19,4,19],[5,2,88,2],[5,1,88,1],[3,17,3,18],[2,0,4,0],[3,25,4,25],[3,3,4,3],[3,8,3,9],[3,24,4,24],[2,2,4,2],[3,6,4,6],[2,12,2,20],[2,3,2,11],[2,21,2,29],[0,0,0,29],[3,28,4,28],[3,29,4,29],[3,7,4,7],[2,1,4,1],[3,21,4,21],[3,26,3,27]]}
["Отчет о выполнении плана финансово-хозяйственной деятельности МАОУ   \"Лицей №21\"                                        по состоянию 01.02.2018"]
[]
[null,"ВР","КОСГУ ","Всего на  2018 год",null,null,null,null,null,null,null,null,"Получено на 01.02.2018 г.",null,null,null,null,null,null,null,null,"Израсходовано"]
[null,null,null,"Всего","Реализация образовательных программ общего образования (обеспечение деятельности организаций)                   07 02 01 2 01 81030","Организация летнего отдыха в каникулярное время(город пришк лагерь) 0702 01 2 06 S8180 (ГОРОД)"," Организация отдыха детей в каникулярное время(область пришкольный лагерь)              0707 01 2 06 S8180 (ОБЛАСТЬ)","Приобретение (изготовление) образовательной организацией бланков документов об образовании   01 2 01 N7880","Обеспечение государственных гарантий прав граждан на получение общедоступного и бесплатного общего образования",null,null,null,"Всего","Реализация образовательных программ общего образования (обеспечение деятельности организаций)                   07 02 01 2 01 81030","Организация летнего отдыха в каникулярное время(город пришк лагерь) 0702 01 2 06 S8180 (ГОРОД)"," Организация отдыха детей в каникулярное время(область пришкольный лагерь)              0707 01 2 06 S8180 (ОБЛАСТЬ)","Приобретение (изготовление) образовательной организацией бланков документов об образовании   01 2 01 N7880","Обеспечение государственных гарантий прав граждан на получение общедоступного и бесплатного общего образования",null,null,null,"Всего","Реализация образовательных программ общего образования (обеспечение деятельности организаций)                   07 02 01 2 01 81030","Организация летнего отдыха в каникулярное время(город пришк лагерь) 0702 01 2 06 S8180 (ГОРОД)"," Организация отдыха детей в каникулярное время(область пришкольный лагерь)              0707 01 2 06 S8180 (ОБЛАСТЬ)","Приобретение (изготовление) образовательной организацией бланков документов об образовании   01 2 01 N7880","Обеспечение государственных гарантий прав граждан на получение общедоступного и бесплатного общего образования"]
[null,null,null,null,null,null,null,null,"Расходы на оплату труда педагогических работников                   07 02 01 2 01 N6300","Прочие расходы, связанные с обеспечением учебного процесса                             07 02 01 2 01 N6300",null,null,null,null,null,null,null,"Расходы на оплату труда педагогических работников                   07 02 01 2 01 N6300","Прочие расходы, связанные с обеспечением учебного процесса                             07 02 01 2 01 N6300",null,null,null,null,null,null,null,"Расходы на оплату труда педагогических работников                   07 02 01 2 01 N6300","Прочие расходы, связанные с обеспечением учебного процесса                             07 02 01 2 01 N6300"]
["Субсидия бюджетным учреждениям на финансовое обеспечение муниципального задания на оказание муниципальных услуг, всего",621,241,{"$f":"SUM(E6:L6)","v":33261362.780000001},{"$f":"E7+E12+E13+E16+E18+E25+E44+E69+E80+E86","v":2701762.7800000003},{"$f":"F7+F12+F13+F16+F18+F25+F44+F69+F80+F86","v":0},{"$f":"G7+G12+G13+G16+G18+G25+G44+G69+G80+G86","v":0},0,{"$f":"I7+I12+I13+I16+I18+I25+I44+I69+I80+I86","v":26411300},4148300,{"$f":"K7+K12+K13+K16+K18+K25+K44+K69+K80+K86","v":0},0,{"$f":"SUM(N6:U6)","v":856260.2},{"$f":"N7+N12+N13+N16+N18+N25+N44+N69+N80+N86","v":429309},0,0,0,300000,126951.2,0,0,{"$f":"SUM(W6:AD6)","v":814097.35},{"$f":"W7+W12+W13+W16+W18+W25+W44+W69+W80+W86","v":429309},0,0,0,264751.26,120037.09,0,0,null,null," "]
["Заработная плата, всего",null,null,{"$f":"SUM(E7:L7)","v":23279800},null,null,null,null,20279800,3000000,null,null,{"$f":"SUM(N7:U7)","v":375000},null,null,null,null,300000,75000,null,null,{"$f":"SUM(W7:AD7)","v":332837.15000000002},null,null,null,null,264751.26,68085.89]
["В т.ч. По нормативу, расчету ",null,null,0,null,null,null,null,null,null,null,null,0,null,null,null,null,null,null,null,null,0]
["награждение победителей конкурса \"Лучший  воспитатель, ПДО\"",null,null,0,null,null,null,null,null,null,null,null,0,null,null,null,null,null,null,null,null,0]
["в т.ч педагогические работники",null,null,20169800,null,null,null,null,20169800,null,null,null,0,null,null,null,null,null,null,null,null,264751.26,null,null,null,null,264751.26]
["           воспитатели",null,null,110000,null,null,null,null,110000,null,null,null,0,null,null,null,null,null,null,null,null,2000,null,null,null,null,2000]
["Прочие выплаты",null,null,0,null,null,null,null,null,null,null,null,0,null,null,null,null,null,null,null,null,0]
["Начисления на оплату труда, всего",null,null,7024300,null,null,null,null,6131500,892800,null,null,0,null,null,null,null,null,null,null,null,0]
["В т.ч. По нормативу, расчету ",null,null,0,null,null,null,null,null,null,null,null,0,null,null,null,null,null,null,null,null,0]
["награждение победителей конкурса \"Лучший  воспитатель, ПДО\"",null,null,0,null,null,null,null,null,null,null,null,0,null,null,null,null,null,null,null,null,0]
["Услуги связи",null,null,177900,35400,null,null,null,null,142500,null,null,14100,2200,null,null,null,null,11900,null,null,14100,2200,null,null,null,null,11900]
["Транспортные услуги",null,null,0,null,null,null,null,null,null,null,null,0,null,null,null,null,null,null,null,null,0]
["Коммунальные услуги, всего",null,null,1160364.78,1160364.78,null,null,null,null,null,null,null,16700,16700,null,null,null,null,null,null,null,16700,16700]
["Свет ОАО \"ТОСК\" ",null,null,0,null,null,null,null,null,null,null,null,0,null,null,null,null,null,null,null,null,0]
["Тепло, всего",null,null,0,null,null,null,{"$f":"H21+H22","v":0},{"$f":"I21+I22","v":0},{"$f":"J21+J22","v":0},null,null,0,null,null,null,{"$f":"Q21+Q22","v":0},{"$f":"R21+R22","v":0},{"$f":"S21+S22","v":0},null,null,0,null,null,null,{"$f":"Z21+Z22","v":0},{"$f":"AA21+AA22","v":0},{"$f":"AB21+AB22","v":0}]
["ОАО \"ТКС\"",null,null,0,null,null,null,null,null,null,null,null,0,null,null,null,null,null,null,null,null,0]
["МУП \"ТИС\"",null,null,0,null,null,null,null,null,null,null,null,0,null,null,null,null,null,null,null,null,0]
["Вода ОАО \"ТКС\"",null,null,0,null,null,null,null,null,null,null,null,0,null,null,null,null,null,null,null,null,0]
["Арендная плата ",null,null,0,null,null,null,null,null,null,null,null,0,null,null,null,null,null,null,null,null,0]
["Расходы, услуги по содержанию имущества, всего",null,null,333300,{"$f":"E26+E27+E28+E29+E30+E40+E41+E42+E43","v":333300},{"$f":"F26+F27+F28+F29+F30+F40+F41+F42+F43","v":0},0,0,0,0,0,0,6300,{"$f":"N26+N27+N28+N29+N30+N40+N41+N42+N43","v":6300},0,0,0,0,0,0,0,6300,{"$f":"W26+W27+W28+W29+W30+W40+W41+W42+W43","v":6300},0,0,0,0,0,0,0]
["Текущий ремонтремонт оборудования школьных столовых ",null,null,30600,30600,null,null,null,null,null,null,null,0,null,null,null,null,null,null,null,null,0]
["вывоз мусора",null,null,78500,78500,null,null,null,null,null,null,null,6300,6300,null,null,null,null,null,null,null,6300,6300]
["дератизация",null,null,3400,3400,null,null,null,null,null,null,null,0,null,null,null,null,null,null,null,null,0]
["техническое обслуживание школьных столовых",null,null,92800,92800,null,null,null,null,null,null,null,0,null,null,null,null,null,null,null,null,0]
["противопожарные мероприятия",null,null,118000,{"$f":"SUM(E31+E32+E33+E34+E35+E36+E37+E38+E39)","v":118000},0,0,0,0,0,0,0,0,{"$f":"SUM(N31+N32+N33+N34+N35+N36+N37+N38+N39)","v":0},0,0,0,0,0,0,0,0,{"$f":"SUM(W31+W32+W33+W34+W35+W36+W37+W38+W39)","v":0},0,0,0,0,0,0,0]
["из них  техническое перед опов при пожаре",null,null,36000,36000,null,null,null,null,null,null,null,0,null,null,null,null,null,null,null,null,0]
["          перезарядка огнетушителей",null,null,0,null,null,null,null,null,null,null,null,0,null,null,null,null,null,null,null,null,0]
["          обслуживание трев.кнопки",null,null,7000,7000,null,null,null,null,null,null,null,0,null,null,null,null,null,null,null,null,0]
["электроизм. Работы",null,null,39000,39000,null,null,null,null,null,null,null,0,null,null,null,null,null,null,null,null,0]
["        Техобслуживание АПС",null,null,36000,36000,null,null,null,null,null,null,null,0,null,null,null,null,null,null,null,null,0]
["огнезащитная обработка",null,null,0,null,null,null,null,null,null,null,null,0,null,null,null,null,null,null,null,null,0]
[null,null,null,0,null,null,null,null,null,null,null,null,0,null,null,null,null,null,null,null,null,0]
["испытание пожарных кранов",null,null,0,null,null,null,null,null,null,null,null,0,null,null,null,null,null,null,null,null,0]
["ТО системы оповещ. О пож",null,null,0,null,null,null,null,null,null,null,null,0,null,null,null,null,null,null,null,null,0]
["Заправка катриджей",null,null,0,null,null,null,null,null,null,null,null,0,null,null,null,null,null,null,null,null,0]
["Прочие расходы, всего",null,null,10000,10000,null,null,null,null,null,null,null,0,null,null,null,null,null,null,null,null,0]
[null,null,null,0,null,null,null,null,null,null,null,null,0,null,null,null,null,null,null,null,null,0]
[null,null,null,0,null,null,null,null,null,null,null,null,0,null,null,null,null,null,null,null,null,0]
["Прочие работы, услуги , всего",null,null,420100,{"$f":"SUM(E45:E68)","v":307100},{"$f":"SUM(F45:F68)","v":0},0,0,0,113000,0,0,40051.199999999997,{"$f":"SUM(N45:N68)","v":0},0,0,0,0,40051.199999999997,0,0,40051.199999999997,{"$f":"SUM(W45:W68)","v":0},0,0,0,0,40051.199999999997,0,0]
["возмещение затрат МУП \"Школьник\", транспортные расходы лагеря",null,null,0,null,null,null,null,null,null,null,null,0,null,null,null,null,null,null,null,null,0]
["питание  в пришкольном лагере",null,null,0,null,null,null,null,null,null,null,null,0,null,null,null,null,null,null,null,null,0]
["льготное питание",null,null,0,null,null,null,null,null,null,null,null,0,null,null,null,null,null,null,null,null,0]
["Установка видеонаблюдения",null,null,0,null,null,null,null,null,null,null,null,0,null,null,null,null,null,null,null,null,0]
["медосмотр",null,null,160900,160900,null,null,null,null,null,null,null,0,null,null,null,null,null,null,null,null,0]
["лицензирование, аккредитация",null,null,0,null,null,null,null,null,null,null,null,0,null,null,null,null,null,null,null,null,0]
["аттестация раб мест",null,null,0,null,null,null,null,null,null,null,null,0,null,null,null,null,null,null,null,null,0]
["противопожарные мероприятия(монтаж)",null,null,0,null,null,null,null,null,null,null,null,0,null,null,null,null,null,null,null,null,0]
["группа быстрого реагирования",null,null,38000,38000,null,null,null,null,null,null,null,0,null,null,null,null,null,null,null,null,0]
["Оформление тех документации",null,null,0,null,null,null,null,null,null,null,null,0,null,null,null,null,null,null,null,null,0]
["программное обеспечение",null,null,102900,30900,null,null,null,null,72000,null,null,0,null,null,null,null,null,null,null,null,0]
["Поверка счетчиков",null,null,0,null,null,null,null,null,null,null,null,0,null,null,null,null,null,null,null,null,0]
[" группа быстрого реагирования)",null,null,0,null,null,null,null,null,null,null,null,0,null,null,null,null,null,null,null,null,0]
["Изготовление печ.прод.(Аттестаты)",null,null,0,null,null,null,null,null,null,null,null,0,null,null,null,null,null,null,null,null,0]
["Дистанционное обучение",null,null,0,null,null,null,null,null,null,null,null,0,null,null,null,null,null,null,null,null,0]
["охрана",null,null,62600,62600,null,null,null,null,null,null,null,0,null,null,null,null,null,null,null,null,0]
["обследование дефектов зданий",null,null,0,null,null,null,null,null,null,null,null,0,null,null,null,null,null,null,null,null,0]
["монтаж системы видеонаблюдения",null,null,0,null,null,null,null,null,null,null,null,0,null,null,null,null,null,null,null,null,0]
["регистрация земельного участка",null,null,0,null,null,null,null,null,null,null,null,0,null,null,null,null,null,null,null,null,0]
["подписка",null,null,0,null,null,null,null,null,null,null,null,0,null,null,null,null,null,null,null,null,0]
["др. расходы, проф.пробы",null,null,41000,null,null,null,null,null,41000,null,null,40051.199999999997,null,null,null,null,null,40051.199999999997,null,null,40051.199999999997,null,null,null,null,null,40051.199999999997]
["Пособия на соц.помощь населению",null,null,0,null,null,null,null,null,null,null,null,0,null,null,null,null,null,null,null,null,0]
["другие расходы",null,null,14700,14700,null,null,null,null,null,null,null,0,null,null,null,null,null,null,null,null,0]
[null,null,null,0,null,null,null,null,null,null,null,null,0,null,null,null,null,null,null,null,null,0]
["Прочие расходы, всего",null,null,463998,{"$f":"E70+E71+E72+E73+E74+E75+E76+E78+E79","v":463998},{"$f":"F70+F71+F72+F73+F74+F75+F76+F78+F79","v":0},0,0,0,0,0,0,404109,{"$f":"N70+N71+N72+N73+N74+N75+N76+N78+N79","v":404109},0,0,0,0,0,0,0,404109,{"$f":"W70+W71+W72+W73+W74+W75+W76+W78+W79","v":404109},0,0,0,0,0,0,0]
["стипендия",null,null,0,null,null,null,null,null,null,null,null,0,null,null,null,null,null,null,null,null,0]
["разовые премии",null,null,{"$f":"SUM(E71:L71)","v":0},null,null,null,null,null,null,null,null,{"$f":"SUM(N71:U71)","v":0},null,null,null,null,null,null,null,null,{"$f":"SUM(W71:AD71)","v":0}]
["экологические платежи",null,null,0,null,null,null,null,null,null,null,null,0,null,null,null,null,null,null,null,null,0]
["Транспортный налог",null,null,0,null,null,null,null,null,null,null,null,0,null,null,null,null,null,null,null,null,0]
["Налог на имущество",null,null,46889,46889,null,null,null,null,null,null,null,0,null,null,null,null,null,null,null,null,0]
["земельный налог",null,null,404109,404109,null,null,null,null,null,null,null,404109,404109,null,null,null,null,null,null,null,404109,404109]
["Госпошлина",null,null,13000,13000,null,null,null,null,null,null,null,0,null,null,null,null,null,null,null,null,0]
["пени, штрафы",null,null,0,null,null,null,null,null,null,null,null,0,null,null,null,null,null,null,null,null,0]
[null,null,null,0,null,null,null,null,null,null,null,null,0,null,null,null,null,null,null,null,null,0]
[null,null,null,0,null,null,null,null,null,null,null,null,0,null,null,null,null,null,null,null,null,0]
["Увеличение стоимости основных средств, всего",null,null,360000,{"$f":"E82+E83+E84+E85","v":360000},{"$f":"F82+F83+F84+F85","v":0},0,0,0,0,0,0,0,{"$f":"N82+N83+N84+N85","v":0},{"$f":"O82+O83+O84+O85","v":0},0,0,0,0,0,0,0,{"$f":"W82+W83+W84+W85","v":0},{"$f":"X82+X83+X84+X85","v":0},0,0,0,0,0,0]
["питание дошкольников в школах-садах",null,null,0,null,null,null,null,null,null,null,null,0,null,null,null,null,null,null,null,null,0]
["прочие основные средства",null,null,0,null,null,null,null,null,null,null,null,0,null,null,null,null,null,null,null,null,0]
["учебники",null,null,0,null,null,null,null,null,null,null,null,0,null,null,null,null,null,null,null,null,0]
["картофелечистка",null,null,360000,360000,null,null,null,null,null,null,null,0,null,null,null,null,null,null,null,null,0]
[null,null,null,0,null,null,null,null,null,null,null,null,0,null,null,null,null,null,null,null,null,0]
["Увеличение стоимости материальных запасов, всего",null,null,41600,{"$f":"E87+E88+E89","v":41600},{"$f":"F87+F88+F89","v":0},0,0,0,0,0,0,0,{"$f":"N87+N88+N89","v":0},0,0,0,0,0,0,0,0,{"$f":"W87+W88+W89","v":0},0,0,0,0,0,0,0]
["прочие",null,null,41600,41600,null,null,null,null,null,null,null,0,null,null,null,null,null,null,null,null,0]
[null,null,null,0,null,null,null,null,null,null,null,null,0,null,null,null,null,null,null,null,null,0]
[null,null,null,0,null,null,null,null,null,null,null,null,0,null,null,null,null,null,null,null,null,0]
[null,null,null,null,null,null,null,null,null,null,null,null,null,null,null,"возврат",null,null,null,null,null,null,null,null,"возврат"]
["Руководитель",null,null,null,"В.Г.Рудник"]
[]
["Главный бухгалтер",null,null,null,"Н.А.Прыткова"]
[]
[null," "]

{"sheet":"Субсидия  на иные цели","index":2,"n_rows":84,"n_cols":42,"rows_kept":84,"cut":false,"hidden":false,"merged":[[3,5,4,5],[3,6,4,6],[3,23,4,23],[3,24,4,24],[0,0,0,38],[2,0,4,0],[2,1,4,1],[2,2,4,2],[2,3,2,12],[2,16,2,25],[3,3,4,3],[3,4,4,4],[3,27,4,27],[3,26,4,26],[3,7,4,7],[3,8,4,8],[3,9,4,9],[3,10,4,10],[3,11,4,11],[3,25,4,25],[3,21,4,21],[3,22,4,22],[3,12,4,12],[3,16,4,16],[3,17,4,17],[3,18,4,18],[3,19,4,19],[3,20,4,20],[3,32,4,32],[3,33,4,33],[3,34,4,34],[5,1,76,1],[5,2,76,2],[3,13,4,13],[3,14,4,14],[3,15,4,15],[3,29,4,29],[3,28,4,28],[3,39,4,39],[3,40,4,40],[3,41,4,41],[2,29,2,41],[3,36,4,36],[3,37,4,37],[3,38,4,38],[3,35,4,35],[3,30,4,30],[3,31,4,31]]}
["Отчет о выполнении плана финансово-хозяйственной деятельности МАОУ                                       по состоянию на 01.02.2018г."]
[]
[null,"ВР","КОСГУ ","Всего на  2018 год",null,null,null,null,null,null,null,null,null,null,null,null,"Получено на 01.02.2018 г.",null,null,null,null,null,null,null,null,null,null,null,null,"Израсходовано"]
[null,null,null,"Всего","Субсидия на организацию и проведение мероприятий,направленных на реализацию федеральной целевой программы развития образования на 2016-2020 годы 0709 01 2 17 L4980","Субсидия на софинансирование мероприятий федеральной целевой программы развития образования на 2016-2020 годы 0709 01 2 17 R4980","Реализация образовательных программ общего образования (обеспечение деятельности организаций)                   07 02 01 2 01 81030","Обеспечение льготным питанием отдельных категорий обучающихся муниципальных общеобразовательных учреждений                               0702 01 2 06 S6310","Лучшие учителя  01 2 07 N6380","Ежемес выплаты стимул характера мол спец муниц общеобраз организ и единовремен денежн выплаты пед работн , заключившим трудовой договор с общеобр организ по основ месту работы 01 2 07 N6380","Капитальный ремонт и ремонт объектов муниципальной собственности                               07 02 01 2 13  88888","Обеспечение реализации мероприятий в сфере общего и дополнительного образования (питание малообеспеченных семей (область)             01 2 06 N6310","Обеспечение мер социальной поддержки многодетных семей в части предоставления бесплатного питания         01 2 06 N3170","Оплата труда работников, мун.орг-й, обеспечивающих техническую эксплуатацию зданий мун.общеобр.орг-й, подвоз обучающихся и на оплату услуг по охране объектов (ЧОП) 0709 01 2 09 S6520","Оплата труда работников, мун.орг-й, обеспечивающих техническую эксплуатацию зданий мун.общеобр.орг-й, подвоз обучающихся и на оплату услуг по охране объектов (ЧОП) 0709 01 2 09 S6520","оплата труда 120000","Всего","Субсидия на организацию и проведение мероприятий,направленных на реализацию федеральной целевой программы развития образования на 2016-2020 годы  0709 01 2 17 L4980","Субсидия на софинансирование мероприятий федеральной целевой программы развития образования на 2016-2020 годы 0709 01 2 17 R4980","Реализация образовательных программ общего образования (обеспечение деятельности организаций)                   07 02 01 2 01 81030","Обеспечение льготным питанием отдельных категорий обучающихся муниципальных общеобразовательных учреждений                               0702 01 2 06 S6310","Лучшие учителя  01 2 07 N 6380","Ежемес выплаты стимул характера мол спец муниц общеобраз организ и единовремен денежн выплаты пед работн , заключившим трудовой договор с общеобр организ по основ месту работы 01 2 07 N6380","Капитальный ремонт и ремонт объектов муниципальной собственности                               07 02 01 2 13  88888","Обеспечение реализации мероприятий в сфере общего и дополнительного образования (питание малообеспеченных семей (область)             01 2 06 N6310","Обеспечение мер социальной поддержки многодетных семей в части предоставления бесплатного питания         01 2 06 N3170","Оплата труда работников, мун.орг-й, обеспечивающих техническую эксплуатацию зданий мун.общеобр.орг-й, подвоз обучающихся и на оплату услуг по охране объектов (ЧОП) 0709 01 2 09 S6520","Оплата труда работников, мун.орг-й, обеспечивающих техническую эксплуатацию зданий мун.общеобр.орг-й, подвоз обучающихся и на оплату услуг по охране объектов (ЧОП) 0709 01 2 09 S6520","молодые учителя 120000","Всего","Субсидия на организацию и проведение мероприятий,направленных на реализацию федеральной целевой программы развития образования на 2016-2020 годы  0709 01 2 17 L4980","Субсидия на софинансирование мероприятий федеральной целевой программы развития образования на 2016-2020 годы 0709 01 2 17 R4980","Реализация образовательных программ общего образования (обеспечение деятельности организаций)                   07 02 01 2 01 81030","Обеспечение льготным питанием отдельных категорий обучающихся муниципальных общеобразовательных учреждений                               0702 01 2 06 S6310","Лучшие учителя  01 2 07 N6380","Ежемес выплаты стимул характера мол спец муниц общеобраз организ и единовремен денежн выплаты пед работн , заключившим трудовой договор с общеобр организ по основ месту работы 01 2 07 N6380","Капитальный ремонт и ремонт объектов муниципальной собственности                               07 02 01 2 13  88888","Обеспечение реализации мероприятий в сфере общего и дополнительного образования (питание малообеспеченных семей (область)             01 2 06 N6310","Обеспечение мер социальной поддержки многодетных семей в части предоставления бесплатного питания         01 2 06 N3170","Оплата труда работников, мун.орг-й, обеспечивающих техническую эксплуатацию зданий мун.общеобр.орг-й, подвоз обучающихся и на оплату услуг по охране объектов (ЧОП) 0709 01 2 09 S6520","Оплата труда работников, мун.орг-й, обеспечивающих техническую эксплуатацию зданий мун.общеобр.орг-й, подвоз обучающихся и на оплату услуг по охране объектов (ЧОП) 0709 01 2 09 S6520","молодые учителя 120000"]
[]
["Субсидия бюджетным учреждениям на иные цели, всего",622,241,{"$f":"E6+F6+G6+H6+I6+J6+K6+L6+M6+N6+O6+P6","v":3938135.2199999997},{"$f":"E7+E12+E13+E16+E18+E25+E45+E61+E70","v":0},{"$f":"F7+F12+F13+F16+F18+F25+F45+F61+F70","v":0},199935.22,519100,0,91100,0,1003700,459900,1664400,0,0,{"$f":"R6+S6+T6+U6+V6+W6+X6+Y6+Z6+AA6+AB6+AC6","v":391175.22},{"$f":"R7+R12+R13+R16+R18+R25+R45+R61+R70","v":0},0,206335.22,0,0,0,0,111600,55000,18240,0,0,{"$f":"AE6+AF6+AG6+AH6+AI6+AJ6+AK6+AL6+AM6+AN6+AO6+AP6","v":380641.92},{"$f":"AE7+AE12+AE13+AE16+AE18+AE25+AE45+AE61+AE70","v":0},0,206335.22,0,0,0,0,101066.7,55000,18240,0,0]
["Заработная плата, всего",null,null,70000,null,null,null,null,null,70000,null,null,null,null,null,null,0,null,null,null,null,null,null,null,null,null,null,null,null,0]
["В т.ч. По нормативу, расчету ",null,null,0,null,null,null,null,null,null,null,null,null,null,null,null,0,null,null,null,null,null,null,null,null,null,null,null,null,0]
["награждение победителей конкурса \"Лучший  воспитатель, ПДО\"",null,null,0,null,null,null,null,null,null,null,null,null,null,null,null,0,null,null,null,null,null,null,null,null,null,null,null,null,0]
["в т.ч.педагогические работники",null,null,70000,null,null,null,null,null,70000,null,null,null,null,null,null,0,null,null,null,null,null,null,null,null,null,null,null,null,0]
["         воспитатели",null,null,0,null,null,null,null,null,null,null,null,null,null,null,null,0,null,null,null,null,null,null,null,null,null,null,null,null,0]
["Прочие выплаты",null,null,0,null,null,null,null,null,null,null,null,null,null,null,null,0,null,null,null,null,null,null,null,null,null,null,null,null,0]
["Начисления на оплату труда, всего",null,null,21100,null,null,null,null,null,21100,null,null,null,null,null,null,0,null,null,null,null,null,null,null,null,null,null,null,null,0]
["В т.ч. По нормативу, расчету ",null,null,0,null,null,null,null,null,null,null,null,null,null,null,null,0,null,null,null,null,null,null,null,null,null,null,null,null,0]
["награждение победителей конкурса \"Лучший  воспитатель, ПДО\"",null,null,0,null,null,null,null,null,null,null,null,null,null,null,null,0,null,null,null,null,null,null,null,null,null,null,null,null,0]
["Услуги связи",null,null,0,null,null,null,null,null,null,null,null,null,null,null,null,0,null,null,null,null,null,null,null,null,null,null,null,null,0]
["Транспортные услуги",null,null,0,null,null,null,null,null,null,null,null,null,null,null,null,0,null,null,null,null,null,null,null,null,null,null,null,null,0]
["Коммунальные услуги, всего",null,null,199935.22,null,null,199935.22,null,null,null,null,null,null,null,null,null,199935.22,null,null,199935.22,null,null,null,null,null,null,null,null,null,199935.22,null,null,199935.22]
["Свет ОАО \"ТОСК\" ",null,null,0,null,null,null,null,null,null,null,null,null,null,null,null,0,null,null,null,null,null,null,null,null,null,null,null,null,0]
["Тепло, всего",null,null,0,null,null,null,{"$f":"H21+H22","v":0},null,{"$f":"J21+J22","v":0},null,{"$f":"L21+L22","v":0},{"$f":"M21+M22","v":0},null,null,null,0,null,null,null,{"$f":"U21+U22","v":0},null,{"$f":"W21+W22","v":0},null,{"$f":"Y21+Y22","v":0},{"$f":"Z21+Z22","v":0},null,null,null,0,null,null,null,{"$f":"AH21+AH22","v":0},null,{"$f":"AJ21+AJ22","v":0},null,{"$f":"AL21+AL22","v":0},{"$f":"AM21+AM22","v":0}]
["ОАО \"ТКС\"",null,null,0,null,null,null,null,null,null,null,null,null,null,null,null,0,null,null,null,null,null,null,null,null,null,null,null,null,0]
["МУП \"ТИС\"",null,null,0,null,null,null,null,null,null,null,null,null,null,null,null,0,null,null,null,null,null,null,null,null,null,null,null,null,0]
["Вода ОАО \"ТКС\"",null,null,0,null,null,null,null,null,null,null,null,null,null,null,null,0,null,null,null,null,null,null,null,null,null,null,null,null,0]
["Арендная плата ",null,null,0,null,null,null,null,null,null,null,null,null,null,null,null,0,null,null,null,null,null,null,null,null,null,null,null,null,0]
["Расходы, услуги по содержанию имущества, всего",null,null,0,{"$f":"E26+E27+E28+E29+E30+E31+E37+E38+E39+E40+E41+E42+E43+E44","v":0},{"$f":"F26+F27+F28+F29+F30+F31+F37+F38+F39+F40+F41+F42+F43+F44","v":0},0,0,0,0,0,0,0,0,0,0,6400,{"$f":"R26+R27+R28+R29+R30+R31+R37+R38+R39+R40+R41+R42+R43+R44","v":0},0,6400,0,0,0,0,0,0,0,0,0,6400,{"$f":"AE26+AE27+AE28+AE29+AE30+AE31+AE37+AE38+AE39+AE40+AE41+AE42+AE43+AE44","v":0},0,6400,0,0,0,0,0,0,0,0,0]
["Текущий ремонт  и ТО оборудования",null,null,0,null,null,null,null,null,null,null,null,null,null,null,null,0,null,null,null,null,null,null,null,null,null,null,null,null,0]
["Ремонт учреждений",null,null,0,null,null,null,null,null,null,null,null,null,null,null,null,0,null,null,null,null,null,null,null,null,null,null,null,null,0]
["вывоз мусора",null,null,0,null,null,null,null,null,null,null,null,null,null,null,null,6400,null,null,6400,null,null,null,null,null,null,null,null,null,6400,null,null,6400]
["Ремонт АПС",null,null,0,null,null,null,null,null,null,null,null,null,null,null,null,0,null,null,null,null,null,null,null,null,null,null,null,null,0]
["Ремонт САО",null,null,0,null,null,null,null,null,null,null,null,null,null,null,null,0,null,null,null,null,null,null,null,null,null,null,null,null,0]
["противопожарные мероприятия",null,null,0,{"$f":"SUM(E32:E36)","v":0},0,0,0,0,0,0,0,0,0,0,0,0,{"$f":"SUM(R32:R36)","v":0},0,0,0,0,0,0,0,0,0,0,0,0,{"$f":"SUM(AE32:AE36)","v":0},0,0,0,0,0,0,0,0,0,0,0]
["из них:  Электроизмерительные работы",null,null,0,null,null,null,null,null,null,null,null,null,null,null,null,0,null,null,null,null,null,null,null,null,null,null,null,null,0]
["          перезарядка огнетушителей",null,null,0,null,null,null,null,null,null,null,null,null,null,null,null,0,null,null,null,null,null,null,null,null,null,null,null,null,0]
["          огнезащитная обработка",null,null,0,null,null,null,null,null,null,null,null,null,null,null,null,0,null,null,null,null,null,null,null,null,null,null,null,null,0]
["Техобслуживание сис.пер.извещ.о пожаре",null,null,0,null,null,null,null,null,null,null,null,null,null,null,null,0,null,null,null,null,null,null,null,null,null,null,null,null,0]
["        Техобслуживание и ремонт АПС",null,null,0,null,null,null,null,null,null,null,null,null,null,null,null,0,null,null,null,null,null,null,null,null,null,null,null,null,0]
["Капитальный ремонт",null,null,0,null,null,null,null,null,null,null,null,null,null,null,null,0,null,null,null,null,null,null,null,null,null,null,null,null,0]
["Текущий ремонт здания",null,null,{"$f":"E38+F38+G38+H38+I38+J38+K38+L38+M38+N38+O38+P38","v":0},null,null,null,null,null,null,null,null,null,null,null,null,0,null,null,null,null,null,null,null,null,null,null,null,null,0]
["техобслуживание и проверка счетчиков",null,null,0,null,null,null,null,null,null,null,null,null,null,null,null,0,null,null,null,null,null,null,null,null,null,null,null,null,0]
["дератизация",null,null,0,null,null,null,null,null,null,null,null,null,null,null,null,0,null,null,null,null,null,null,null,null,null,null,null,null,0]
["Заправка катриджей",null,null,0,null,null,null,null,null,null,null,null,null,null,null,null,0,null,null,null,null,null,null,null,null,null,null,null,null,0]
["промывка системы отопления, установка приборов учета",null,null,0,null,null,null,null,null,null,null,null,null,null,null,null,0,null,null,null,null,null,null,null,null,null,null,null,null,0]
[null,null,null,0]
[null,null,null,0]
["Прочие работы, услуги , всего",null,null,3309900,{"$f":"E46+E47+E48+E49+E50+E51+E52+E53+E54+E55+E56+E57+E58+E59+E60","v":0},{"$f":"F46+F47+F48+F49+F50+F51+F52+F53+F54+F55+F56+F57+F58+F59+F60","v":0},0,519100,0,0,0,666500,459900,1664400,0,0,{"$f":"R45+S45+T45+U45+V45+W45+X45+Y45+Z45+AA45+AB45+AC45","v":147340},{"$f":"R46+R47+R48+R49+R50+R51+R52+R53+R54+R55+R56+R57+R58+R59+R60","v":0},0,0,0,0,0,0,74100,55000,18240,0,0,{"$f":"AE45+AF45+AG45+AH45+AI45+AJ45+AK45+AL45+AM45+AN45+AO45+AP45","v":147340},{"$f":"AE46+AE47+AE48+AE49+AE50+AE51+AE52+AE53+AE54+AE55+AE56+AE57+AE58+AE59+AE60","v":0},0,0,0,0,0,0,74100,55000,18240,0,0]
["Проф.переподготовка,повыш.квалификации,обучающий вебинар",null,null,0,null,null,null,null,null,null,null,null,null,null,null,null,0,null,null,null,null,null,null,null,null,null,null,null,null,0]
["питание  в пришкольном лагере",null,null,0,null,null,null,null,null,null,null,null,null,null,null,null,0,null,null,null,null,null,null,null,null,null,null,null,null,0]
["льготное питание",null,null,1645500,null,null,null,519100,null,null,null,666500,459900,null,null,null,129100,null,null,null,null,null,null,null,74100,55000,null,null,null,129100,null,null,null,null,null,null,null,74100,55000]
["аттестация раб мест",null,null,0,null,null,null,null,null,null,null,null,null,null,null,null,0,null,null,null,null,null,null,null,null,null,null,null,null,0]
["медосмотр",null,null,0,null,null,null,null,null,null,null,null,null,null,null,null,0,null,null,null,null,null,null,null,null,null,null,null,null,0]
["Монтаж системы передачи изв.о пож.",null,null,0,null,null,null,null,null,null,null,null,null,null,null,null,0,null,null,null,null,null,null,null,null,null,null,null,null,0]
["аттестация раб мест",null,null,0,null,null,null,null,null,null,null,null,null,null,null,null,0,null,null,null,null,null,null,null,null,null,null,null,null,0]
["Монтаж видеонаблюдения",null,null,0,null,null,null,null,null,null,null,null,null,null,null,null,0,null,null,null,null,null,null,null,null,null,null,null,null,0]
["инкассация",null,null,0,null,null,null,null,null,null,null,null,null,null,null,null,0,null,null,null,null,null,null,null,null,null,null,null,null,0]
["Оформление земли в собственность",null,null,0,null,null,null,null,null,null,null,null,null,null,null,null,0,null,null,null,null,null,null,null,null,null,null,null,null,0]
["программное обеспечение",null,null,0,null,null,null,null,null,null,null,null,null,null,null,null,0,null,null,null,null,null,null,null,null,null,null,null,null,0]
["оформление тех документации",null,null,0,null,null,null,null,null,null,null,null,null,null,null,null,0,null,null,null,null,null,null,null,null,null,null,null,null,0]
["охрана",null,null,1664400,null,null,null,null,null,null,null,null,null,1664400,null,null,18240,null,null,null,null,null,null,null,null,null,18240,null,null,18240,null,null,null,null,null,null,null,null,null,18240]
[null,null,null,0]
[null,null,null,0]
["Увеличение стоимости основных средств",null,null,0,{"$f":"E62+E63+E64+E65+E66+E67+E68+E69","v":0},{"$f":"F62+F63+F64+F65+F66+F67+F68+F69","v":0},0,0,0,0,0,0,0,0,0,0,{"$f":"R61+S61+T61+U61+V61+W61+X61+Y61+Z61+AA61+AB61+AC61","v":0},{"$f":"R62+R63+R64+R65+R66+R67+R68+R69","v":0},0,0,0,0,0,0,0,0,0,0,0,{"$f":"AE61+AF61+AG61+AH61+AI61+AJ61+AK61+AL61+AM61+AN61+AO61+AP61","v":0},{"$f":"AE62+AE63+AE64+AE65+AE66+AE67+AE68+AE69","v":0},0,0,0,0,0,0,0,0,0,0,0]
["курсы повышения квалиф.",null,null,0,null,null,null,null,null,null,null,null,null,null,null,null,0,null,null,null,null,null,null,null,null,null,null,null,null,0]
["обследование дефектов зданий",null,null,0,null,null,null,null,null,null,null,null,null,null,null,null,0,null,null,null,null,null,null,null,null,null,null,null,null,0]
["монтаж системы видеонаблюдения",null,null,0,null,null,null,null,null,null,null,null,null,null,null,null,0,null,null,null,null,null,null,null,null,null,null,null,null,0]
["регистрация земельного участка",null,null,0,null,null,null,null,null,null,null,null,null,null,null,null,0,null,null,null,null,null,null,null,null,null,null,null,null,0]
["мебель",null,null,0,null,null,null,null,null,null,null,null,null,null,null,null,0,null,null,null,null,null,null,null,null,null,null,null,null,0]
["др. расходы",null,null,0,null,null,null,null,null,null,null,null,null,null,null,null,0,null,null,null,null,null,null,null,null,null,null,null,null,0]
[null,null,null,0]
[null,null,null,0]
["Увеличение материальных запасов, всего",null,null,{"$f":"E70+F70+G70+H70+I70+J70+K70+L70+M70+N70+O70+P70","v":337200},{"$f":"E71+E72+E73+E74+E75+E76+E77","v":0},{"$f":"F71+F72+F73+F74+F75+F76+F77","v":0},0,0,0,0,0,337200,0,0,0,0,{"$f":"R70+S70+T70+U70+V70+W70+X70+Y70+Z70+AA70+AB70+AC70","v":37500},{"$f":"R71+R72+R73+R74+R75+R76+R77","v":0},0,0,0,0,0,0,37500,0,0,0,0,{"$f":"AE70+AF70+AG70+AH70+AI70+AJ70+AK70+AL70+AM70+AN70+AO70+AP70","v":26966.7},{"$f":"AE71+AE72+AE73+AE74+AE75+AE76+AE77","v":0},0,0,0,0,0,0,26966.7,0,0,0,0]
["стипендия",null,null,0,null,null,null,null,null,null,null,null,null,null,null,null,0,null,null,null,null,null,null,null,null,null,null,null,null,0]
["разовые премии",null,null,0,null,null,null,null,null,null,null,null,null,null,null,null,0,null,null,null,null,null,null,null,null,null,null,null,null,0]
["зап.части",null,null,0,null,null,null,null,null,null,null,null,null,null,null,null,0,null,null,null,null,null,null,null,null,null,null,null,null,0]
["молоко",null,null,337200,null,null,null,null,null,null,null,337200,null,null,null,null,37500,null,null,null,null,null,null,null,37500,null,null,null,null,26966.7,null,null,null,null,null,null,null,26966.7]
["пени, штрафы",null,null,0,null,null,null,null,null,null,null,null,null,null,null,null,0,null,null,null,null,null,null,null,null,null,null,null,null,0]
[null,null,null,0,null,null,null,null,null,null,null,null,null,null,null,null,0,null,null,null,null,null,null,null,null,null,null,null,null,0]
[null,null,null,0,null,null,null,null,null,null,null,null,null,null,null,null,0,null,null,null,null,null,null,null,null,null,null,null,null,0]
[null,null,null,null,null,null," "]
["Руководитель",null,null,null,"В.Г.Рудник"]
[]
["Главный бухгалтер",null,null,null,"Н.А.Прыткова",null,null,null,null,null,null,null,null,null,null,null,null,null," "]
[]
[]
[null,null,null,null,null,null,null,null,null,null,null,null,null,null,null,null,null,null,null,null,null,null,null,null,null,null,null,null,null," ",null,null,null,null,null,null," "]